{"text_format":"2","workbook":"xlsx","n_sheets":4,"sheets":["Лист1 (2)","Лист1","Лист2","Лист3"],"not_rendered":{"charts":0,"images":0,"macros":0,"external_links":0,"defined_names":1,"comments":0,"pivot_tables":0},"unopened":[],"bounds":{"document_bytes":16777216,"sheet_cells":100000,"run_cost":"one","rows_first":2000,"rows_last":500,"rows_between":2000,"halvings":0,"cell_chars":16384,"cell_head_chars":4096},"cells_cut":0,"cells_raw":0,"read":"whole","date_system":"1900"}

{"sheet":"Лист1 (2)","index":0,"n_rows":18,"n_cols":37,"rows_kept":18,"cut":false,"hidden":false,"merged":[[6,34,7,36],[7,2,7,3],[7,4,7,5],[6,23,7,24],[6,25,7,26],[6,27,7,28],[6,29,7,30],[6,31,7,31],[6,32,7,33],[6,12,7,13],[6,14,7,15],[6,16,7,16],[6,17,7,18],[6,19,7,20],[6,21,7,22],[0,0,0,11],[1,0,2,11],[4,0,4,11],[6,0,8,0],[6,1,8,1],[6,2,6,5],[6,6,7,7],[6,8,7,9],[6,10,7,11]]}
["Отчет"]
["  о результатах мониторинга качества финансового менеджмента,                                                                                                                                                                                                                            осуществляемого главными администраторами средств районного бюджета"]
[]
[]
["на 1 июля 2022 года"]
[]
["№","Наименование главного администратора средств районного бюджета","1.6. Сумма внесенных изменений в бюджетную роспись в связи с уточнением ассигнований по решению Земского собрания",null,null,null,"1.7. Сумма внесенных положительных изменений в бюджетную роспись в отчетном периоде в связи с передвижками между кодами бюджетной классификации",null,"1. Финансовое планирование",null,"2.3. Своевременность принятия бюджетных обязательств",null,"2.4. Качество прогнозирования кассовых расходов",null,"2.5. Уровень подготовки платежных документов",null,"2.6. Качество исполнения расходов","2. Исполнение бюджета в части расходов",null,"3.2. Полнота зачисления платежей в районный бюджет по главному администратору доходов районного бюджета",null,"3.3.  Отклонение кассового исполнения по доходам от прогноза по главному администратору доходов районного бюджета",null,"3.Исполнение бюджета в части доходов",null,"4.3.  Коэффициент сложности исполнения бюджетных ассигнований",null,"7.3. Уровень использования субсидий бюджетными и автономными учреждениями, предоставленных на выполнение муниципального заданий",null,"7.4. Уровень подготовки платежных документов бюджетными и автономными учреждениями",null,"7.5. Качество осуществления расходов бюджетными и автономными учреждениями","7. Бюджетные и автономные учреждения",null,"И Т О Г О                                                                                                                    по главному администратору средств                                     районного бюджета"]
[null,null,"положительных",null,"отрицательных"]
[null,null,"значение показателя","количество баллов","значение показателя","количество баллов","значение показателя","количество баллов","значение показателя","количество баллов","значение показателя","количество баллов","значение показателя","количество баллов","значение показателя","количество баллов","количество баллов","значение показателя","количество баллов","значение показателя","количество баллов","значение показателя","количество баллов","значение показателя","количество баллов","значение показателя","количество баллов","значение показателя","количество баллов","значение показателя","количество баллов","количество баллов","значение показателя","количество баллов","количество баллов","max возможная сумма баллов","Общий показатель качества финансового менеджмента главного администратра средств районного бюджета (гр.35/гр.36)*100%"]
[1,2,3,4,5,6,7,8,9,10,11,12,13,14,15,16,17,18,19,20,21,22,23,24,25,26,27,28,29,30,31,32,33,34,35,36,37]
[null,"1 группа"]
[1,"Администрация района",92.8,8,101,4,99,10,{"$f":"C12+E12+G12","v":292.8},{"$f":"D12+F12+H12","v":22},10.7,0,84.9,3,99.5,7,7.3,{"$f":"SUM(K12+M12+O12)","v":195.10000000000002},{"$f":"SUM(L12+N12+P12+Q12)","v":17.3},0,5,7.4,10,{"$f":"SUM(T12+V12)","v":7.4},{"$f":"SUM(U12+W12)","v":15},29.4,3,90.2,6,99.9,7,7.3,{"$f":"SUM(AB12+AD12)","v":190.10000000000002},{"$f":"SUM(AC12+AE12+AF12)","v":20.3},{"$f":"SUM(J12+S12+Y12+AA12+AH12)","v":77.599999999999994},125,{"$f":"SUM(AI12/AJ12)*100","v":62.079999999999991}]
[2,"Управление образования",95.8,10,101.9,4,99.9,10,{"$f":"C13+E13+G13","v":297.60000000000002},24,32.799999999999997,4,94.8,6,97.9,7,7.3,{"$f":"SUM(K13+M13+O13)","v":225.5},{"$f":"SUM(L13+N13+P13+Q13)","v":24.3},0,5,-25,0,{"$f":"SUM(T13+V13)","v":-25},5,935.7,10,79.599999999999994,3,99.5,7,6.3,{"$f":"SUM(AB13+AD13)","v":179.1},{"$f":"SUM(AC13+AE13+AF13)","v":16.3},{"$f":"SUM(J13+S13+Y13+AA13+AH13)","v":79.599999999999994},125,{"$f":"SUM(AI13/AJ13)*100","v":63.679999999999993}]
[3,"Отдел культуры",97.7,10,100,4,99.9,10,297.60000000000002,24,60.7,7,96.1,10,99.7,7,8.6999999999999993,256.5,32.700000000000003,0,5,0,0,0,5,823.9,6,92.4,6,99.6,7,7.3,192,20.3,88,125,70.399999999999991]
[null,"2 группа"]
[1,"Финансовое управление",97.6,10,102.9,4,100,10,300.5,24,29.3,0,90.4,6,100,10,8.6999999999999993,219.7,24.7,0,5,0,10,0,15,57.5,6,{"$nulls":7},69.7,95,73.368421052631589]
[2,"Управление сельского хозяйства",99.7,10,100,4,96.8,10,296.5,24,77.400000000000006,7,99,10,100,10,8.6999999999999993,276.39999999999998,35.700000000000003,0,5,0,10,0,15,115.5,10,{"$nulls":7},84.7,95,{"$f":"SUM(AI17/AJ17)*100","v":89.15789473684211}]
[3,"ОУМИ",94.1,8,101.2,4,96,10,291.3,22,12.9,0,64.400000000000006,0,99,7,10,176.3,17,0,5,0.2,10,0.2,15,15,3,{"$nulls":7},57,95,{"$f":"SUM(AI18/AJ18)*100","v":60}]

{"sheet":"Лист1","index":1,"n_rows":0,"n_cols":0,"rows_kept":0,"cut":false,"hidden":false,"merged":[]}

{"sheet":"Лист2","index":2,"n_rows":0,"n_cols":0,"rows_kept":0,"cut":false,"hidden":false,"merged":[]}

{"sheet":"Лист3","index":3,"n_rows":0,"n_cols":0,"rows_kept":0,"cut":false,"hidden":false,"merged":[]}